Cogmind - Beta 15 @@@ ROGUE MODE // 2025.06.07 @ 19:41:05 Player: Kaeinara Result: Self-destructed Performance ------------- Evolutions (3) 1500 Regions Visited (5) 1000 Robots Destroyed (50) 250 Value Destroyed (1843) 1843 Prototype IDs (1) 20 Alien Tech Used (0) 0 Bonus (0) 0 TOTAL SCORE: 4613 Bonus ------- None Cogmind --------- Core Integrity 471/700 Matter 300/300 Energy 64/100 System Corruption 2% Temperature Cool (0) Movement Walking (125) Location -7/Storage Parts ------- > --- POWER (1) -------- (None) > --- PROPULSION (4) --- Carbon-fiber Leg Improved Titanium Leg Improved Titanium Leg Improved Titanium Leg > --- UTILITY (5) ------ Improved Cooling System Medium Storage Unit Improved Targeting Computer Core Analyzer Improved Light Armor Plating > --- WEAPON (3) ------- Plasma Cannon Plasma Cannon > --- INVENTORY (10) --- Carbon-fiber Leg Carbon-fiber Leg Titanium Leg Titanium Leg Trap Scanner Improved Light Armor Plating Pulse Rifle Pulse Rifle Improved Spread Laser Cooled Particle Cannon Peak State ------------ > --- POWER ------------ Light Deuterium Engine > --- PROPULSION ------- Carbon-fiber Leg Improved Titanium Leg Improved Titanium Leg Improved Titanium Leg > --- UTILITY ---------- Improved Cooling System Medium Storage Unit Improved Targeting Computer Core Analyzer Improved Light Armor Plating > --- WEAPON ----------- Heavy Laser Plasma Cannon Plasma Cannon > --- INVENTORY -------- Carbon-fiber Leg Carbon-fiber Leg Titanium Leg Titanium Leg Trap Scanner Improved Light Armor Plating Pulse Rifle Pulse Rifle Improved Spread Laser Cooled Particle Cannon [Rating: 47] Favorites ----------- Power Light Deuterium Engine Engine Light Deuterium Engine Power Core Light Nuclear Core Propulsion Titanium Leg Leg Titanium Leg Utility Medium Storage Unit Device Heat Sink Storage Medium Storage Unit Processor Improved Targeting Computer Protection Improved Light Armor Plating Weapon Pulse Rifle Energy Gun Pulse Rifle Energy Cannon Plasma Cannon Ballistic Cannon Light Cannon Launcher Grenade Launcher Build | -11 -10 -9 -8 -7 -7 ------- Run | Yrd Mat Mat Mat Fac Sto Slots Evolved 6 | . . 2 2 2 . Power . | . . . . . . Propulsion 2 | . . 2 . . . Utility 3 | . . . 2 1 . Weapon 1 | . . . . 1 . Parts Attached 46 | 6 8 8 9 13 2 Power 7 | 1 1 . 3 2 . Engine 6 | 1 . . 3 2 . Core 1 | . 1 . . . . Reactor . | . . . . . . Propulsion 12 | 2 2 4 . 4 . Treads . | . . . . . . Leg 12 | 2 2 4 . 4 . Wheel . | . . . . . . Hover . | . . . . . . Flight . | . . . . . . Utility 13 | 1 2 1 4 5 . Device 5 | . 1 . 1 3 . Storage 2 | 1 1 . . . . Processor 3 | . . 1 1 1 . Hackware . | . . . . . . Protection 3 | . . . 2 1 . Artifact . | . . . . . . Weapon 14 | 2 3 3 2 2 2 Energy Gun 10 | 2 1 3 2 2 . Energy Cannon 2 | . . . . . 2 Ballistic Gun . | . . . . . . Ballistic Cannon 1 | . 1 . . . . Launcher 1 | . 1 . . . . Special Weapon . | . . . . . . Impact Weapon . | . . . . . . Slashing Weapon . | . . . . . . Piercing Weapon . | . . . . . . Special Melee Weapon . | . . . . . . Unidentified Prototypes 1 | . . 1 . . . Parts Lost 10 | . 2 1 1 4 2 Power 4 | . . . 1 2 1 Propulsion . | . . . . . . Utility 3 | . . 1 . 2 . Weapon 3 | . 2 . . . 1 Highest Loss Streak 2 | . 2 1 1 2 1 To Critical Strikes . | . . . . . . Average Backups 8 | 3 7 8 9 9 10 Power 1 | . 1 2 1 1 . Propulsion 2 | 2 3 1 1 1 4 Utility 1 | . . 1 1 3 2 Weapon 3 | 1 2 3 5 3 3 Tool/Special . | . . . . . . Unused Backups 11 | . 5 1 . 1 4 Power 1 | . 1 . . . . Propulsion 6 | . 4 . . . 2 Utility 1 | . . 1 . . . Weapon 3 | . . . . 1 2 Tool/Special . | . . . . . . Average Slot Usage (%) 99 | . 98 99 99 99 97 Engine 6 | . 12 . 5 7 5 Core 3 | . 1 11 3 . . Leg 33 | . 28 43 36 30 29 Device 9 | . 12 8 7 11 7 Storage 10 | . 14 11 9 7 7 Processor 7 | . . 2 13 8 15 Protection 4 | . . . 6 7 7 Energy Gun 21 | . 27 16 18 23 14 Peak Build Rating 47 | 6 9 25 32 45 47 Average Rating 25 | 4 7 19 30 41 44 On Entrance 19 | . 6 9 25 32 45 Naked Turns . | . . . . . . Heaviest Build 38 | 13 20 22 28 31 38 Greatest Support 77 | 20 20 68 68 77 75 Greatest Overweight (x) . | . . . . . . Average Overweight (x) . | . . . . . . Largest Inventory Capacity 10 | 8 10 10 10 10 10 Average Capacity 9 | 7 9 10 10 10 10 Most Carried 10 | 6 10 10 10 10 10 Average Carried 8 | 4 7 8 9 9 9 Final Capacity 10 | 8 10 10 10 10 10 Final Carried 10 | 6 7 10 10 10 10 Class Distribution -------------------- 65% | Mutant 16% | Tank 11% | Gunner 6% | Scavenger-Mutant Dominant Class ---------------- Mutant | -10/Materials Mutant | -9/Materials Mutant | -8/Materials Tank | -7/Factory Gunner | -7/Storage Resources | -11 -10 -9 -8 -7 -7 ----------- Run | Yrd Mat Mat Mat Fac Sto Matter Collected 766 | 196 94 217 100 129 30 Remotely . | . . . . . . Salvage Created 1945 | . 395 535 368 508 139 Parts 92 | . 23 35 15 17 2 Haulers Intercepted . | . . . . . . Recyclers Shooed . | . . . . . . Parts Field Recycled . | . . . . . . Retrieved Matter . | . . . . . . Parts Self-Destructed . | . . . . . . Prevented . | . . . . . . Kills | -11 -10 -9 -8 -7 -7 ------- Run | Yrd Mat Mat Mat Fac Sto Combat Hostiles Destroyed 43 | . 11 13 6 11 2 Guns 32 | . 9 8 4 10 1 Cannons 3 | . . 3 . . . AOE 4 | . 2 1 1 . . Classes Destroyed 8 | . 3 2 1 2 . Worker 1 | . . 1 . . . Watcher 6 | . 2 . 3 1 . Swarmer 5 | . 2 3 . . . Grunt 27 | . 9 8 4 6 . Duelist 1 | . . . . 1 . Sentry 8 | . . 2 1 3 2 Hunter 1 | . . . 1 . . Programmer 1 | . . . . 1 . Best Kill Streak 8 | . 3 8 3 3 1 Combat Bots Only 8 | . 3 8 3 3 1 Max Kills in Single Turn 2 | . 1 2 1 1 1 Gunslinging . | . . . . . . Exploded 1 | . 1 1 1 . . Melee . | . . . . . . Uniques/NPCs Destroyed . | . . . . . . Combat | -11 -10 -9 -8 -7 -7 -------- Run | Yrd Mat Mat Mat Fac Sto Hostile Shots Fired 340 | . 52 35 30 147 76 Missed 106 | . 12 2 11 48 33 Hits 234 | . 40 33 19 99 43 Melee 3 | . . . . 3 . Projectile 231 | . 40 33 19 96 43 Critical Strikes 3 | . . 1 . 2 . Damage Taken 2786 | . 506 419 344 1058 459 Core 418 | . 67 63 59 179 50 Absorbed by Shields . | . . . . . . Core Remaining (%) 86 | 100 73 84 89 . . Volleys Fired 118 | . 32 29 21 30 6 Largest 3 | . 2 2 2 3 3 Hottest 229 | . 90 90 126 195 229 Shots Fired 270 | . 62 58 42 90 18 Gun 244 | . 59 45 42 90 8 Cannon 23 | . . 13 . . 10 Launcher 3 | . 3 . . . . Special . | . . . . . . Kinetic 13 | . . 13 . . . Thermal 212 | . 59 13 32 90 18 Explosive 3 | . 3 . . . . Electromagnetic 42 | . . 32 10 . . Robot Hit Streak 27 | . 27 17 14 20 12 Robot Miss Streak 4 | . 2 3 4 2 2 Penetration Max . | . . . . . . Secondary Targets 3 | . 2 . 1 . . Max Gunslinging Chain 1 | . 1 . 1 . . Shots Hit Robots 211 | . 49 41 34 75 12 Core Hits 102 | . 22 22 20 31 7 Critical Kills . | . . . . . . Critical Parts Destroyed . | . . . . . . Critical Strikes 9 | . 3 . 3 2 1 Burn 9 | . 3 . 3 2 1 Melee Attacks . | . . . . . . Impact . | . . . . . . Slashing . | . . . . . . Piercing . | . . . . . . Sneak Attacks . | . . . . . . Combat Hostiles . | . . . . . . Follow-up Attacks . | . . . . . . Damage Inflicted 3781 | . 684 722 667 1425 283 Guns 3177 | . 551 569 591 1356 110 Cannons 267 | . . 117 . . 150 Explosions 245 | . 133 36 76 . . Melee . | . . . . . . Ramming 92 | . . . . 69 23 Kinetic 117 | . . 117 . . . Thermal 2804 | . 551 120 517 1356 260 Explosive 133 | . 133 . . . . Electromagnetic 635 | . . 485 150 . . Impact . | . . . . . . Slashing . | . . . . . . Piercing . | . . . . . . Highest Corruption 2 | . . . . 2 2 Average Corruption 2 | . . . . 2 2 Corruption Purged . | . . . . . . Corruption Blocked . | . . . . . . Effects 8 | . . . . 6 2 Message Errors 2 | . . . . 1 1 Matter Fused 1 | . . . . 1 . Heat Flow Errors 2 | . . . . 2 . Energy Discharges 1 | . . . . . 1 Misfires 1 | . . . . 1 . Weapon Failures 1 | . . . . 1 . Overload Shots . | . . . . . . Overflow Damage . | . . . . . . Projectiles . | . . . . . . Explosions . | . . . . . . Melee . | . . . . . . Knockbacks 1 | . . 1 . . . Impact . | . . . . . . Kinetic 1 | . . 1 . . . Secondary . | . . . . . . Self-Inflicted Damage 175 | . 77 42 56 . . Shots 5 | . 3 1 1 . . Rammed . | . . . . . . Targets Rammed 20 | . . . . 12 8 Kicked 20 | . . . . 12 8 Crushed . | . . . . . . Highest Temperature 485 | . 72 261 201 485 150 Average Temperature 98 | . 22 89 70 152 66 Received Heat Transfer 1020 | . 204 171 117 417 111 Effects 4 | . . . . 4 . Shutdowns 2 | . . . . 2 . Energy Bleed 2 | . . . . 2 . Siege Activations . | . . . . . . Martial Activations . | . . . . . . Shielding Activations . | . . . . . . Robots Disrupted . | . . . . . . Combat Hostiles . | . . . . . . Robots Corrupted 1 | . . 1 . . . Combat Hostiles 1 | . . 1 . . . Parts Fried 7 | . . 7 . . . Impact Corruptions . | . . . . . . Robots Melted 3 | . . . 1 1 1 Combat Hostiles 3 | . . . 1 1 1 Parts Melted 22 | . 6 . 3 6 7 Heat Transferred 6774 | . 1684 250 1284 2960 596 Parts Sabotaged . | . . . . . . Parts Stolen . | . . . . . . Parts Stripped . | . . . . . . Power Chain Reactions 3 | . . 1 2 . . Alert | -11 -10 -9 -8 -7 -7 ------- Run | Yrd Mat Mat Mat Fac Sto Maximum Alert Level . | . . . . . . Low Security (%) 100 | 100 100 100 100 100 100 Level 1 . | . . . . . . Level 2 . | . . . . . . Level 3 . | . . . . . . Level 4 . | . . . . . . Level 5 . | . . . . . . High Security . | . . . . . . Max Security . | . . . . . . Peak Influence 193 | . 92 173 84 193 82 Initial 76 | . . 38 53 3 76 Average 34 | . 16 69 20 55 55 Influence Increases 1304 | . 313 315 219 381 76 Destroy 0b10 Robot/C 860 | . 220 260 120 220 40 Destroy 0b10 Robot/NC 35 | . 10 5 15 5 . Destroy Leader 202 | . 44 40 36 62 20 Successful Hack 34 | . 11 4 19 . . Disable Machine 15 | . . . . . 15 Destroy Structure 38 | . 13 6 14 4 1 Partial Spotted 15 | . . . 15 . . Lose Combat Pursuer 105 | . 15 . . 90 . Influence Decreases 1252 | . 221 278 340 220 193 Entered New Map 228 | . . 54 76 5 93 Time Decay 934 | . 201 214 264 175 80 Lost Part 90 | . 20 10 . 40 20 Squads Dispatched 3 | . 2 . . 1 . Investigation 1 | . 1 . . . . Extermination 1 | . . . . 1 . Reinforcement 1 | . 1 . . . . Assault . | . . . . . . Garrison . | . . . . . . Intercept . | . . . . . . Searches Triggered . | . . . . . . Construction Impeded . | . . . . . . Haulers Reinforced . | . . . . . . Active Scanning Responses . | . . . . . . Cargo Convoy Interrupts . | . . . . . . Stealth | -11 -10 -9 -8 -7 -7 --------- Run | Yrd Mat Mat Mat Fac Sto Distress Signals 4 | . 1 1 1 . 1 Communications Jammed . | . . . . . . Distress Signals . | . . . . . . Times Spotted 74 | . 17 18 12 18 9 Peak Tracking Total 6 | . 3 5 3 4 6 Tactical Retreats 4 | . 1 . . 3 . Traps | -11 -10 -9 -8 -7 -7 ------- Run | Yrd Mat Mat Mat Fac Sto Traps Triggered 3 | . 2 . . . 1 Indirectly . | . . . . . . Trap Hack Attempts . | . . . . . . Triggered . | . . . . . . Disarmed . | . . . . . . Reprogrammed . | . . . . . . Reused . | . . . . . . Traps Extracted . | . . . . . . Installed . | . . . . . . Triggered . | . . . . . . Machines | -11 -10 -9 -8 -7 -7 ---------- Run | Yrd Mat Mat Mat Fac Sto Machines Disabled 1 | . . . . . 1 Max in Single Turn 1 | . . . . . 1 Machines Repaired . | . . . . . . Machines Dismantled . | . . . . . . Machines Sabotaged . | . . . . . . Overloaded Fab Kills . | . . . . . . Hacking | -11 -10 -9 -8 -7 -7 --------- Run | Yrd Mat Mat Mat Fac Sto Machines Accessed 13 | . 4 2 3 2 2 Terminals 11 | . 4 2 3 . 2 Fabricators . | . . . . . . Repair Stations . | . . . . . . Recycling Units . | . . . . . . Scanalyzers 1 | . . . . 1 . Garrison Access 1 | . . . . 1 . Total Hacks 22 | . 9 4 5 2 2 Successful 8 | . 4 1 2 . 1 Failed 14 | . 5 3 3 2 1 Catastrophic 3 | . 1 2 . . . Database Lockouts . | . . . . . . Manual . | . . . . . . Terminals 20 | . 9 4 5 . 2 Fabricators . | . . . . . . Repair Stations . | . . . . . . Recycling Units . | . . . . . . Scanalyzers 1 | . . . . 1 . Garrison Access 1 | . . . . 1 . Terminal Hacks 8 | . 4 1 2 . 1 Open Door 1 | . . . . . 1 Emergency Access Points 3 | . 2 1 . . . Hauler Manifests 2 | . 1 . 1 . . Registered Components 1 | . 1 . . . . Zone Layout 1 | . . . 1 . . Fabricator Hacks . | . . . . . . Repair Station Hacks . | . . . . . . Recycling Unit Hacks . | . . . . . . Scanalyzer . | . . . . . . Garrison Access Hacks . | . . . . . . Unauthorized Hacks . | . . . . . . Terminals . | . . . . . . Fabricators . | . . . . . . Repair Stations . | . . . . . . Recycling Units . | . . . . . . Scanalyzers . | . . . . . . Garrison Access . | . . . . . . Data Cores Recovered . | . . . . . . Used . | . . . . . . Hacking Detections 7 | . 1 2 1 2 1 Full Trace Events . | . . . . . . Feedback Events . | . . . . . . Feedback Blocked . | . . . . . . Robot Schematics Acquired . | . . . . . . Robots Built . | . . . . . . Authchips . | . . . . . . Time . | . . . . . . Total Robot Build Rating . | . . . . . . Part Schematics Acquired . | . . . . . . Parts Built . | . . . . . . Authchips . | . . . . . . Time . | . . . . . . Total Part Build Rating . | . . . . . . Parts Repaired . | . . . . . . Time . | . . . . . . Parts Recycled . | . . . . . . Recycled Matter . | . . . . . . Retrieved Matter . | . . . . . . Retrieved Components . | . . . . . . Parts Scanalyzed . | . . . . . . Part Schematics Acquired . | . . . . . . Parts Damaged . | . . . . . . Bothacking | -11 -10 -9 -8 -7 -7 ------------ Run | Yrd Mat Mat Mat Fac Sto Used RIF Installer . | . . . . . . Robots Hacked . | . . . . . . Non-combat . | . . . . . . Combat . | . . . . . . Robot Hacks Applied . | . . . . . . Relay Couplers Released . | . . . . . . Fabnet Peak Effective % . | . . . . . . Robots Rewired . | . . . . . . Allies Hacked . | . . . . . . Hacks Repelled . | . . . . . . Allies | -11 -10 -9 -8 -7 -7 -------- Run | Yrd Mat Mat Mat Fac Sto Total Allies . | . . . . . . Largest Group . | . . . . . . Highest-Rated Group . | . . . . . . Highest-Rated Ally . | . . . . . . Total Orders . | . . . . . . Ally Attacks . | . . . . . . Total Damage . | . . . . . . Kills . | . . . . . . Allies Corrupted . | . . . . . . Allies Melted . | . . . . . . Intel | -11 -10 -9 -8 -7 -7 ------- Run | Yrd Mat Mat Mat Fac Sto Active Infowar (turns) 927 | . . . 925 2 . Traps 737 | . . . 735 2 . Machine Analysis 445 | . . . 445 . . Robot Analysis Total . | . . . . . . Derelict Logs Recovered . | . . . . . . Drone Launches . | . . . . . . Drone Recoveries . | . . . . . . Exploration | -11 -10 -9 -8 -7 -7 ------------- Run | Yrd Mat Mat Mat Fac Sto Turns Passed 3352 | 87 933 444 962 762 164 Spaces Moved 1693 | 60 322 229 647 354 81 Core 3 | 3 . . . . . Treads . | . . . . . . Legs 1690 | 57 322 229 647 354 81 Wheels . | . . . . . . Hover . | . . . . . . Flight . | . . . . . . Fastest Speed 50 | 50 120 120 130 127 125 Average Speed 126 | 116 120 126 130 129 126 Slowest Speed 130 | 120 120 130 130 130 127 Overloaded Moves . | . . . . . . Propulsion Burnouts . | . . . . . . Robots Hopped . | . . . . . . Potential Cave-ins . | . . . . . . Cave-ins Triggered . | . . . . . . Exploration Rate (%) 27 | 3 52 25 56 11 19 Regions Visited 5 Branch Regions 1 Pre-discovered Areas . | . . . . . . Known Exits Taken . | . . . . . . Unknown Exits Taken 5 | 1 1 1 1 1 . Scrap Searched . | . . . . . . Spaces Dug . | . . . . . . Terrain Destroyed 53 | . 30 5 16 . 2 Melee . | . . . . . . Projectile 2 | . . . . . 2 AOE 51 | . 30 5 16 . . Terrain Rammed . | . . . . . . Walls Destroyed . | . . . . . . Machines Disabled . | . . . . . . Actions | -11 -10 -9 -8 -7 -7 --------- Run | Yrd Mat Mat Mat Fac Sto Total 2650 | 77 807 324 730 586 126 Wait 693 | . 430 43 36 160 24 Move 1688 | 59 321 228 646 353 81 Hop . | . . . . . . Pick Up 53 | 12 9 10 10 10 2 Fast Attach 2 | . 1 . . . 1 Attach 22 | 6 3 3 4 6 . Detach . | . . . . . . Swap 28 | . 5 7 5 9 2 Drop 26 | . 6 4 8 6 2 Fire 118 | . 32 29 21 30 6 Melee . | . . . . . . Ram . | . . . . . . Kick 20 | . . . . 12 8 Crush . | . . . . . . Escape Stasis . | . . . . . . Rewire . | . . . . . . Trap . | . . . . . . Miscellaneous . | . . . . . . Route ------- -11/Scrapyard -10/Materials -9/Materials -8/Materials (discovered 2 exits: *Fac x2) -7/Factory (discovered 2 exits: *Sto / [*Low]) -7/Storage History --------- Turn | Location | Event 8 | -11/Scrapyard | Discovered new exit (range 15) 88 | -11/Scrapyard | Entered Materials 312 | -10/Materials | Build established: Mutant 939 | -10/Materials | Discovered new exit (range 14) 1021 | -10/Materials | Entered another Materials area 1021 | -9/Materials | Evolved 2 slots: Propulsion x2 1398 | -9/Materials | Destroyed 8 combat bots 1440 | -9/Materials | Discovered new exit (range 13) 1465 | -9/Materials | Entered another Materials area 1465 | -8/Materials | Evolved 2 slots: Utility x2 1595 | -8/Materials | Discovered new exit (range 9) 2384 | -8/Materials | Discovered new exit (range 16) 2427 | -8/Materials | Entered Factory 2427 | -7/Factory | Evolved 2 slots: Utility x1, Weapon x1 2449 | -7/Factory | Discovered new exit (range 15) 2707 | -7/Factory | Build established: Tank 3163 | -7/Factory | Discovered new exit (range 11) 3189 | -7/Factory | Entered Storage 3250 | -7/Storage | Build established: Gunner 3353 | -7/Storage | Self-destructed Last Messages --------------- 03325_ Y-54 Guardian heat short circuits Lgt. Treads. 03325_ R-06 Scavenger collects Imp. Light Armor Plating. 03326_ Y-54 Guardian heat spikes uncontrollably. 03326_ Imp. Deuterium Engine melted. 03326_ Imp. Light Armor Plating melted. 03326_ Imp. Heat Sink melted. 03326_ Y-54 Guardian destroyed. 03326_ Component Storage disabled. 03333_ K-01 Serf collects debris. 03343_ Kicked S-27 Virus. 03344_ Hvy. Laser destroyed. 03344_ Kicked S-27 Virus out of the way. 03346_ Kicked S-27 Virus. 03347_ K-01 Serf collects debris. 03348_ Kicked S-27 Virus. 03351_ Kicked S-27 Virus out of the way. 03351_ K-01 Serf collects debris. 03352_ Kicked S-27 Virus. Map ----- +----------------------------------------------------+ | ?????????????????????????????????????????????????? | | ?????????????????????????????????????????????????? | | ?????????????????????????????????????????????????? | | ?????????????????????????????????????????????????? | | ?????????????????????????????????????????????????? | | ?????????????????????????????????????????????????? | | ?????????????????????????????????????????????????? | | ?????????????????????????????????????????????????? | | ?????????????????????????????????????????????????? | | ?????????????????????????????????????????????????? | | ????????????????????????????? ???????????????????? | | ????????????????????????????? ??????????????????? | | ????????????????????#???????? ??????????????????? | | ??????????????"???? #??????? #??????????????????? | | ????????????"""???] #??????? #??????????????????? | | ?????????????"" ??] #??????? ???????????????????? | | ?????????????"" ? #?????? ???????????????????? | | #####????????? ??????? ????????????????????? | | #????????? ????????? #??????????????????? | | ###########/########### #??????????????????? | | ## #??????????????????? | | #" #??????????????????? | | #" #??????????????????? | | "" #" """"" ! ] ####s#####??????????????????? | | "" #T """"" ! ] # %%% #??????????????????? | | "" #" """"" !]] # @ ####???????????????? | | "" #" """"" # s "" #???????????????? | | "" #" #" " """#???????????????? | | ## #"" R"#???????????????? | | ## """"" #""" """#???????????????? | | #+#### """"" #""" k ####???????????????? | | """"" #"""ss % ###????????????????? | | ^ """"" + % # #????????????????? | | ######## ###????????????????? | | ###T## #??????###??????????????????? | | T#######+#############???????????????????????????? | | ##???????????????????????????????????????????????? | | #????????????????????????????????????????????????? | | #????????????????????????????????????????????????? | | #????????????????????????????????????????????????? | | #????????????????????????????????????????????????? | | ?????????????????????????????????????????????????? | | | | | | | | | | | | | | | | | +----------------------------------------------------+ Best States ------------- Heat Dissipation 61 Energy Generation 14 Energy Capacity 265 Matter Stores 300 Matter Capacity 300 Sight Range 16 Terrain Scan Density 10 Armor Coverage 300 Evasion (%) 63 Targeting Accuracy 6 Core Analysis 6 Item Schematics ----------------- None Robot Schematics ------------------ None Fabricated ------------ Nothing Repaired ---------- Nothing Alien Tech Used ----------------- None Achievements -------------- None Challenges ------------ None Game ------ Seed AntimissileHeatRedirector Manual? 0 Play Time 00:37:41 Cumulative 27.1 hours Start 2025.06.07 @ 11:41:33 End 2025.06.07 @ 19:41:05 Sessions 3 Manual Loads 0 Difficulty Rogue Special Mode None Game No. 34 Rogue 34 Adventurer 0 Explorer 0 Win Type - Total 0 Types 0/0/0/0/0/0/0/0/0/0 Lore% 8 Gallery% 23 Achievement% 18 Wizard Run 0 Options --------- Layout 1 ASCII 0 Keyboard 0 Movement Mouse Keybinds 0 Fullscreen 1 Font 24/Smallcaps Map View 50x35 Zoom Use 0% Tactical HUD 1 Map Filters NONE Filters NONE Steam 1 RUN: a7a59af4-8132-447c-8bae-a15cdadbf4a0